bitfinex-derivatives/quotes_BNBF0:USTF0_20250529
["timestamp","ask_amount","ask_price","bid_price","bid_amount"]
[1748490882022,0.29119711,686.82,686.58,1.04850425]
[1748490882216,0.29119711,686.82,686.59,1.04840127]
[1748490882421,0.29119711,686.82,686.6,1.04836158]
[1748490882620,0.29119711,686.82,686.61,1.04836158]
[1748490882817,0.29119711,686.82,686.62,1.04836158]
[1748490883119,0.29119711,686.82,686.63,1.04836051]
[1748490883317,0.29119711,686.82,686.64,1.04836051]
[1748490883622,0.29119711,686.82,686.43,0.64]
[1748490883922,0.29119711,686.82,686.44,1.61575881]
[1748490884120,0.29119711,686.82,686.45,1.6157307]
[1748490884319,0.29119711,686.82,686.46,0.56742463]
[1748490884523,0.29119711,686.82,686.47,0.56742463]
[1748490884820,0.29119711,686.82,686.48,1.048306]
[1748490885124,0.29119711,686.82,686.49,1.61568215]
[1748490885325,0.29119711,686.82,686.5,1.61568215]
[1748490885620,0.29119711,686.82,686.51,1.61563726]
[1748490885822,0.29119711,686.82,686.52,1.61561322]
[1748490886017,0.29119711,686.82,686.53,1.0482299]
[1748490886221,0.29119711,686.82,686.54,1.0482299]
[1748490886419,0.29119711,686.82,686.55,1.0482299]
[1748490886624,0.29119711,686.82,686.56,1.048188]
[1748490886824,0.29119711,686.82,686.57,1.048188]
[1748490887024,0.29119711,686.82,686.58,1.048188]
[1748490887222,0.29119711,686.82,686.59,1.048188]
[1748490887422,0.29119711,686.82,686.6,1.048188]
[1748490887625,0.29119711,686.82,686.43,0.64]
[1748490887824,0.29119711,686.82,686.44,1.61523221]
[1748490888028,0.29119711,686.82,686.45,1.61523225]
[1748490888229,0.29119711,686.82,686.46,1.61523133]
[1748490888431,0.29119711,686.82,686.47,1.61523107]
[1748490888624,0.29119711,686.82,686.48,1.61523107]
[1748490888928,0.29119711,686.82,686.49,1.6151743]
[1748490889129,0.29119711,686.82,686.5,1.61517344]
[1748490889329,0.29119711,686.82,686.51,1.6151735]
[1748490889530,0.29119711,686.82,686.52,0.56726924]
[1748490889731,0.29119711,686.82,686.53,1.0478695]
[1748490889926,0.29119711,686.82,686.54,1.0478695]
[1748490890126,0.29119711,686.82,686.55,1.0478695]
[1748490890331,0.29119711,686.82,686.56,1.0478591]
[1748490890531,0.29119711,686.82,686.57,1.0478591]
[1748490890732,0.29119711,686.82,686.58,1.0478591]
[1748490890928,0.29119711,686.82,686.59,1.0478384]
[1748490891129,0.29119711,686.82,686.6,1.0478381]
[1748490891327,0.29119711,686.82,686.61,1.0478381]
[1748490891531,0.29119711,686.82,686.62,1.0478381]
[1748490891832,0.29119711,686.82,686.43,0.64]
[1748490891833,0.29119711,686.82,686.63,1.0478381]
[1748490892034,0.29119711,686.82,686.43,0.64]
[1748490892232,0.29119711,686.82,686.44,1.6150298]
[1748490892535,0.29119711,686.82,686.45,1.61502533]
[1748490892835,0.29119711,686.82,686.46,1.61502533]
[1748490893029,0.29119711,686.82,686.47,1.61502533]
[1748490893233,0.29119711,686.82,686.48,1.61502533]
[1748490893428,0.29119711,686.82,686.49,1.61500013]
[1748490893635,0.29119711,686.82,686.5,1.61495296]
[1748490893834,0.29119711,686.82,686.43,0.64]
[1748490893835,0.29119711,686.82,686.51,1.61495296]
[1748490894036,0.29119711,686.82,686.52,1.61495296]
[1748490894234,0.29119711,686.82,686.53,1.04776119]
[1748490894434,0.29119711,686.82,686.54,1.04736731]
[1748490894630,0.29119711,686.82,686.43,0.64]
[1748490894631,0.29119711,686.82,686.55,1.04736731]
[1748490894836,0.29119711,686.82,686.56,1.04732574]
[1748490895032,0.29119711,686.82,686.57,1.04732574]
[1748490895335,0.29119711,686.82,686.58,1.04771293]
[1748490895638,0.29119711,686.82,686.59,1.04767035]
[1748490895833,0.29119711,686.82,686.6,1.04767035]
[1748490896040,0.29119711,686.82,686.43,0.64]
[1748490896239,0.29119711,686.82,686.44,1.61480882]
[1748490896538,0.29119711,686.82,686.45,1.61481207]
[1748490896746,0.29119711,686.82,686.46,1.61481207]
[1748490896939,0.29119711,686.82,686.47,1.61481207]
[1748490897239,0.29119711,686.82,686.48,1.614787]
[1748490897434,0.29119711,686.82,686.49,1.614787]
[1748490897735,0.29119711,686.82,686.5,1.614787]
[1748490897934,0.29119711,686.82,686.43,0.64]
[1748490898138,0.29119711,686.82,686.44,1.61461853]
[1748490898338,0.29119711,686.82,686.45,1.61461853]
[1748490898542,0.29119711,686.82,686.46,1.61461853]
[1748490898737,0.29119711,686.82,686.47,1.61461853]
[1748490898941,0.29119711,686.82,686.48,1.61372012]
[1748490899139,0.29119711,686.82,686.49,1.61371846]
[1748490899341,0.29119711,686.82,686.5,1.61371846]
[1748490899539,0.29119711,686.82,686.43,0.64]
[1748490899738,0.29119711,686.82,686.44,1.0466611]
[1748490899938,0.29119711,686.82,686.45,1.6137286]
[1748490900139,0.29119711,686.82,686.46,1.61369318]
[1748490900338,0.29119711,686.82,686.47,0.56705542]
[1748490900639,0.29119711,686.82,686.48,1.61369399]
[1748490900840,0.29119711,686.82,686.49,1.04663857]
[1748490901143,0.29119711,686.82,686.5,1.61370687]
[1748490901338,0.29119711,686.82,686.51,1.61370687]
[1748490901644,0.29119711,686.82,686.52,1.04665587]
[1748490901839,0.29119711,686.82,686.53,1.04666071]
[1748490902042,0.29119711,686.82,686.43,0.64]
[1748490902043,0.29119711,686.82,686.54,1.04666071]
[1748490902244,0.29119711,686.82,686.55,1.04666071]
[1748490902441,0.29119711,686.82,686.56,1.04666071]
[1748490902746,0.29119711,686.82,686.57,1.04666071]
[1748490903046,0.29119711,686.82,686.58,1.04663888]
[1748490903246,0.29119711,686.82,686.43,0.64]
[1748490903247,0.29119711,686.82,686.59,1.04664138]
[1748490903543,0.29119711,686.82,686.6,1.04664161]
[1748490903743,0.29119711,686.82,686.61,1.04664161]
[1748490903945,0.29119711,686.82,686.62,1.04664014]
[1748490904147,0.29119711,686.82,686.63,1.04664029]
[1748490904346,0.29119711,686.82,686.43,0.64]
[1748490904545,0.29119711,686.82,686.44,1.61364715]
[1748490904748,0.29119711,686.82,686.45,1.61364715]
[1748490905047,0.29119711,686.82,686.43,0.64]
[1748490905048,0.29119711,686.82,686.46,1.61364715]
[1748490905249,0.29119711,686.82,686.47,1.61368864]
[1748490905446,0.29119711,686.82,686.48,0.56702437]
[1748490905644,0.29119711,686.82,686.49,1.6136956]
[1748490905949,0.29119711,686.82,686.5,1.0466502]
[1748490906146,0.29119711,686.82,686.43,0.64]
[1748490906147,0.29119711,686.82,686.51,1.61366699]
[1748490906347,0.29119711,686.82,686.52,0.56701679]
[1748490906652,0.29119711,686.82,686.53,1.0466405]
[1748490906845,0.29119711,686.82,686.43,0.64]
[1748490907046,0.29119711,686.82,686.44,1.61365252]
[1748490907251,0.29119711,686.82,686.45,1.61365252]
[1748490907452,0.29119711,686.82,686.46,0.56700707]
[1748490907654,0.29119711,686.82,686.43,0.64]
[1748490908148,0.29119711,686.82,686.44,1.61363893]
[1748490908347,0.29119711,686.82,686.45,1.61363893]
[1748490908549,0.29119711,686.82,686.46,1.61363893]
[1748490908750,0.29119711,686.82,686.47,1.61363893]
[1748490908951,0.29119711,686.82,686.48,1.61363893]
[1748490909150,0.29119711,686.82,686.49,1.6136823]
[1748490909348,0.29119711,686.82,686.5,1.6137623]
[1748490909548,0.29119711,686.82,686.43,0.64]
[1748490909549,0.29119711,686.82,686.51,1.6137623]
[1748490909750,0.29119711,686.82,686.52,1.04686805]
[1748490909952,0.29119711,686.82,686.53,1.04686805]
[1748490910153,0.29119711,686.82,686.54,1.04689021]
[1748490910453,0.29119711,686.82,686.55,1.04689021]
[1748490910650,0.29119711,686.82,686.43,0.64]
[1748490910850,0.29119711,686.82,686.44,0.56721466]
[1748490911052,0.29119711,686.82,686.45,1.61423996]
[1748490911248,0.29119711,686.82,686.46,1.61483952]
[1748490911451,0.29119711,686.82,686.47,1.04762486]
[1748490911650,0.29119711,686.82,686.48,1.04762486]
[1748490911855,0.29119711,686.82,686.49,1.04762486]
[1748490912049,0.29119711,686.82,686.5,1.04762486]
[1748490912253,0.29119711,686.82,686.51,1.04762486]
[1748490912452,0.29119711,686.82,686.52,1.04762112]
[1748490912649,0.29119711,686.82,686.53,1.04770984]
[1748490912852,0.29119711,686.82,686.54,1.04754438]
[1748490913049,0.29119711,686.82,686.55,1.04754438]
[1748490913350,0.29119711,686.82,686.56,1.04754438]
[1748490913654,0.29119711,686.82,686.57,1.04754022]
[1748490913854,0.29119711,686.82,686.58,1.04754022]
[1748490914051,0.29119711,686.82,686.59,1.04754022]
[1748490914250,0.29119711,686.82,686.43,0.64]
[1748490914451,0.29119711,686.82,686.44,1.61474516]
[1748490914654,0.29119711,686.82,686.45,1.61474518]
[1748490914851,0.29119711,686.82,686.46,1.61474518]
[1748490915055,0.29119711,686.82,686.43,0.64]
[1748490915056,0.29119711,686.82,686.47,0.56720696]
[1748490915256,0.29119711,686.82,686.48,1.0475382]
[1748490915457,0.29119711,686.82,686.49,1.0475382]
[1748490915654,0.29119711,686.82,686.5,1.0475382]
[1748490915851,0.29119711,686.82,686.43,0.64]
[1748490915852,0.29119711,686.82,686.51,1.0475385]
[1748490916052,0.29119711,686.82,686.52,1.0475385]
[1748490916253,0.29119711,686.82,686.43,0.64]
[1748490916456,0.29119711,686.82,686.44,1.61474484]
[1748490916754,0.29119711,686.82,686.45,1.6147462]
[1748490916958,0.29119711,686.82,686.46,1.6147462]
[1748490917158,0.29119711,686.82,686.47,1.6147462]
[1748490917358,0.29119711,686.82,686.48,1.04753893]
[1748490917560,0.29119711,686.82,686.49,1.04753893]
[1748490917754,0.29119711,686.82,686.5,1.04753971]
[1748490917955,0.29119711,686.82,686.51,1.04753964]
[1748490918260,0.29119711,686.82,686.52,1.04753964]
[1748490918456,0.29119711,686.82,686.53,1.04753964]
[1748490918660,0.29119711,686.82,686.54,1.04753964]
[1748490918955,0.29119711,686.82,686.55,1.04753964]
[1748490919259,0.29119711,686.82,686.56,1.04753964]
[1748490919455,0.29119711,686.82,686.57,1.04754423]
[1748490919655,0.29119711,686.82,686.58,1.04754423]
[1748490919856,0.29119711,686.82,686.43,0.64]
[1748490920057,0.29119711,686.82,686.44,1.61475388]
[1748490920259,0.29119711,686.82,686.45,1.61475388]
[1748490920458,0.29119711,686.82,686.46,1.61475807]
[1748490920662,0.29119711,686.82,686.47,1.61475807]
[1748490920861,0.29119711,686.82,686.48,1.04754647]
[1748490921055,0.29119711,686.82,686.43,0.64]
[1748490921056,0.29119711,686.82,686.49,1.04754647]
[1748490921260,0.29119711,686.82,686.5,1.04746525]
[1748490921461,0.29119711,686.82,686.51,1.04746525]
[1748490921657,0.29119711,686.82,686.52,1.04746525]
[1748490921861,0.29119711,686.82,686.43,0.64]
[1748490921862,0.29119711,686.82,686.53,1.04746525]
[1748490922059,0.29119711,686.82,686.54,1.04746525]
[1748490922362,0.29119711,686.82,686.55,1.04747567]
[1748490922562,0.29119711,686.82,686.56,1.04747567]
[1748490922758,0.29119711,686.82,686.57,1.04747567]
[1748490922958,0.29119711,686.82,686.43,0.64]
[1748490923162,0.29119711,686.82,686.44,1.61353667]
[1748490923362,0.29119711,686.82,686.45,1.61353667]
[1748490923659,0.29119711,686.82,686.46,1.61353667]
[1748490923863,0.29119711,686.82,686.47,1.61353667]
[1748490924064,0.29119711,686.82,686.48,1.0463183]
[1748490924264,0.29119711,686.82,686.49,1.0463183]
[1748490924461,0.29119711,686.82,686.43,0.64]
[1748490924665,0.29119711,686.82,686.44,1.61309778]
[1748490924861,0.29119711,686.82,686.45,1.61309778]
[1748490925166,0.29119711,686.82,686.46,1.61309781]
[1748490925466,0.29119711,686.82,686.47,1.61309781]
[1748490925766,0.29119711,686.82,686.48,1.04587262]
[1748490925967,0.29119711,686.82,686.49,1.04587262]
[1748490926167,0.29119711,686.82,686.5,1.04525157]
[1748490926367,0.29119711,686.82,686.51,1.04525157]
[1748490926563,0.29119711,686.82,686.52,1.04525157]
[1748490926763,0.29119711,686.82,686.53,1.04526507]
[1748490926966,0.29119711,686.82,686.43,0.64]
[1748490926967,0.29119711,686.82,686.54,1.04526507]
[1748490927168,0.29119711,686.82,686.55,1.04526507]
[1748490927365,0.29119711,686.82,686.56,1.04526507]
[1748490927572,0.29119711,686.82,686.57,1.04526507]
[1748490927869,0.29119711,686.82,686.58,1.04526507]
[1748490928169,0.29119711,686.82,686.43,0.64]
[1748490928466,0.29119711,686.82,686.44,1.61258744]
[1748490928667,0.29119711,686.82,686.45,1.61258795]
[1748490928868,0.29119711,686.82,686.46,1.61258795]
[1748490929069,0.29119711,686.82,686.47,1.61258795]
[1748490929269,0.29119711,686.82,686.48,1.612588]
[1748490929470,0.29119711,686.82,686.43,0.64]
[1748490929471,0.29119711,686.82,686.49,1.0452305]
[1748490929664,0.29119711,686.82,686.5,1.0452305]
[1748490929869,0.29119711,686.82,686.43,0.64]
[1748490930066,0.29119711,686.82,686.44,1.0452305]
[1748490930266,0.29119711,686.82,686.45,1.61258815]
[1748490930566,0.29119711,686.82,686.46,0.56735765]
[1748490930767,0.29119711,686.82,686.47,1.61258895]
[1748490930970,0.29119711,686.82,686.48,1.61258936]
[1748490931269,0.29119711,686.82,686.49,1.0452313]
[1748490931470,0.29119711,686.82,686.5,1.0452313]
[1748490931670,0.29119711,686.82,686.43,0.64]
[1748490931871,0.29119711,686.82,686.44,1.0450249]
[1748490932067,0.29119711,686.82,686.45,1.6123833]
[1748490932269,0.29119711,686.82,686.43,0.64]
[1748490932270,0.29119711,686.82,686.46,1.6123833]
[1748490932467,0.29119711,686.82,686.47,1.6123833]
[1748490932670,0.29119711,686.82,686.48,1.6123784]
[1748490932868,0.29119711,686.82,686.49,1.04502]
[1748490933072,0.29119711,686.82,686.5,1.04502]
[1748490933272,0.29119711,686.82,686.51,1.0450604]
[1748490933467,0.29119711,686.82,686.52,1.0450642]
[1748490933667,0.29119711,686.82,686.43,0.64]
[1748490933874,0.29119711,686.82,686.44,1.61243513]
[1748490934069,0.29119711,686.82,686.45,1.61243513]
[1748490934270,0.29119711,686.82,686.46,0.56736884]
[1748490934572,0.29119711,686.82,686.47,1.61243784]
[1748490934768,0.29119711,686.82,686.48,1.61243784]
[1748490934968,0.29119711,686.82,686.49,1.04507156]
[1748490935173,0.29119711,686.82,686.5,1.04507156]
[1748490935373,0.29119711,686.82,686.51,1.04507572]
[1748490935567,0.29119711,686.82,686.43,0.64]
[1748490935568,0.29119711,686.82,686.52,1.04507571]
[1748490935769,0.29119711,686.82,686.53,1.04507571]
[1748490935974,0.29119711,686.82,686.54,1.04507571]
[1748490936173,0.29119711,686.82,686.55,1.04507571]
[1748490936370,0.29119711,686.82,686.56,1.04507544]
[1748490936572,0.29119711,686.82,686.57,1.04507544]
[1748490936776,0.29119711,686.82,686.58,1.04507544]
[1748490937069,0.29119711,686.82,686.59,1.04507544]
[1748490937275,0.29119711,686.82,686.43,0.64]
[1748490937673,0.29119711,686.82,686.44,1.6124635]
[1748490937873,0.29119711,686.82,686.45,1.6124635]
[1748490938072,0.29119711,686.82,686.46,1.6124635]
[1748490938269,0.29119711,686.82,686.47,1.6124635]
[1748490938471,0.29119711,686.82,686.48,1.6124639]
[1748490938770,0.29119711,686.82,686.49,1.0450846]
[1748490938975,0.29119711,686.82,686.5,1.0450022]
[1748490939175,0.29119711,686.82,686.51,1.0450022]
[1748490939375,0.29119711,686.82,686.52,1.045003]
[1748490939575,0.29119711,686.82,686.53,1.045003]
[1748490939875,0.29119711,686.82,686.54,1.045003]
[1748490940077,0.29119711,686.82,686.55,1.045003]
[1748490940377,0.29119711,686.82,686.56,1.0449972]
[1748490940577,0.29119711,686.82,686.43,0.64]
[1748490940777,0.29119711,686.82,686.44,1.61326747]
[1748490940969,0.29119711,686.82,686.43,0.64]
[1748490941170,0.29119711,686.82,686.44,1.61326747]
[1748490941476,0.29119711,686.82,686.45,1.61326747]
[1748490941777,0.29119711,686.82,686.46,0.56732168]
[1748490942072,0.29119711,686.82,686.47,1.04593895]
[1748490942277,0.29119711,686.82,686.48,1.61326063]
[1748490942476,0.29119711,686.82,686.49,1.04593895]
[1748490942672,0.29119711,686.82,686.5,1.04595307]
[1748490942877,0.29119711,686.82,686.43,0.64]
[1748490943176,0.29119711,686.82,686.44,0.56731914]
[1748490943372,0.29119711,686.82,686.43,0.64]
[1748490945277,0.29119711,686.82,686.44,0.56731652]
[1748490945474,0.29119711,686.82,686.43,0.64]
[1748490945872,0.29119711,686.82,686.44,1.61338511]
[1748490946074,0.29119711,686.82,686.45,1.61338553]
[1748490946273,0.29119711,686.82,686.46,1.61338553]
[1748490946478,0.29119711,686.82,686.47,1.61338553]
[1748490946674,0.29119711,686.82,686.48,1.61343072]
[1748490946878,0.29119711,686.82,686.49,1.04611475]
[1748490947077,0.29119711,686.82,686.5,1.04611475]
[1748490947280,0.29119711,686.82,686.51,1.04611475]
[1748490947579,0.29119711,686.82,686.52,1.04611475]
[1748490947780,0.29119711,686.82,686.53,1.04611475]
[1748490947981,0.29119711,686.82,686.54,1.04611475]
[1748490948178,0.29119711,686.82,686.55,1.04611475]
[1748490948381,0.29119711,686.82,686.56,1.04609421]
[1748490948580,0.29119711,686.82,686.57,1.04609421]
[1748490948777,0.29119711,686.82,686.58,1.04609421]
[1748490948982,0.29119711,686.82,686.59,1.04610007]
[1748490949181,0.29119711,686.82,686.43,0.64]
[1748490949378,0.29119711,686.82,686.44,1.6134293]
[1748490949580,0.29119711,686.82,686.45,1.6134293]
[1748490949778,0.29119711,686.82,686.46,1.6134293]
[1748490949983,0.29119711,686.82,686.47,1.61342969]
[1748490950280,0.29119711,686.82,686.43,0.64]
[1748490950485,0.29119711,686.82,686.44,1.0461358]
[1748490950683,0.29119711,686.82,686.45,1.0461358]
[1748490950879,0.29119711,686.82,686.43,0.64]
[1748490950880,0.29119711,686.82,686.46,1.61346332]
[1748490951084,0.29119711,686.82,686.47,1.61346332]
[1748490951381,0.29119711,686.82,686.48,1.61346332]
[1748490951582,0.29119711,686.82,686.49,1.0461358]
[1748490951782,0.29119711,686.82,686.5,1.0461358]
[1748490951981,0.29119711,686.82,686.51,1.0461365]
[1748490952184,0.29119711,686.82,686.52,1.046144]
[1748490952384,0.29119711,686.82,686.53,1.046144]
[1748490952683,0.29119711,686.82,686.43,0.64]
[1748490952881,0.29119711,686.82,686.44,1.61347524]
[1748490953084,0.29119711,686.82,686.45,1.61347524]
[1748490953281,0.29119711,686.82,686.46,1.6134743]
[1748490953585,0.29119711,686.82,686.47,1.61347225]
[1748490953786,0.29119711,686.82,686.48,1.61347225]
[1748490953988,0.29119711,686.82,686.43,0.64]
[1748490953989,0.29119711,686.82,686.49,1.04613519]
[1748490954288,0.29119711,686.82,686.5,1.04613519]
[1748490954586,0.29119711,686.82,686.51,1.04613519]
[1748490954787,0.29119711,686.82,686.52,1.04614882]
[1748490954984,0.29119711,686.82,686.53,1.04614882]
[1748490955183,0.29119711,686.82,686.54,1.04614882]
[1748490955384,0.29119711,686.82,686.43,0.64]
[1748490955589,0.29119711,686.82,686.44,1.61356232]
[1748490955884,0.29119711,686.82,686.43,0.64]
[1748490956083,0.29119711,686.82,686.44,1.61356234]
[1748490956290,0.29119711,686.82,686.45,1.61355829]
[1748490956486,0.29119711,686.82,686.46,1.61355829]
[1748490956684,0.29119711,686.82,686.47,1.61355829]
[1748490956882,0.29119711,686.82,686.48,1.61355829]
[1748490957084,0.29119711,686.82,686.43,0.64]
[1748490957284,0.29119711,686.82,686.44,1.61363839]
[1748490957588,0.29119711,686.82,686.45,1.61373509]
[1748490957784,0.29119711,686.82,686.46,1.61373509]
[1748490957988,0.29119711,686.82,686.47,1.61373509]
[1748490958184,0.29119711,686.82,686.48,1.6137341]
[1748490958390,0.29119711,686.82,686.49,1.6137341]
[1748490958586,0.29119711,686.82,686.5,1.6137341]
[1748490958790,0.29119711,686.82,686.43,0.64]
[1748490959085,0.29119711,686.82,686.44,1.61384527]
[1748490959290,0.29119711,686.82,686.45,1.61386668]
[1748490959491,0.29119711,686.82,686.46,1.61387041]
[1748490959693,0.29119711,686.82,686.47,1.61392549]
[1748490959887,0.29119711,686.82,686.48,1.61392549]
[1748490960092,0.29119711,686.82,686.49,1.61392549]
[1748490960392,0.29119711,686.82,686.5,1.61395413]
[1748490960589,0.29119711,686.82,686.51,1.04644491]
[1748490960790,0.29119711,686.82,686.52,1.04644491]
[1748490960986,0.29119711,686.82,686.53,1.04644491]
[1748490961188,0.29119711,686.82,686.54,1.04644491]
[1748490961387,0.29119711,686.82,686.55,1.04644997]
[1748490961587,0.29119711,686.82,686.43,0.64]
[1748490961588,0.29119711,686.82,686.56,1.04644997]
[1748490961792,0.29119711,686.82,686.57,1.04644997]
[1748490961988,0.29119711,686.82,686.58,1.04644997]
[1748490962292,0.29119711,686.82,686.43,0.64]
[1748490962488,0.29119711,686.82,686.44,1.61404472]
[1748490962789,0.29119711,686.82,686.45,1.61404472]
[1748490962991,0.29119711,686.82,686.46,1.61404472]
[1748490963194,0.29119711,686.82,686.47,1.61404472]
[1748490963393,0.29119711,686.82,686.48,1.61404472]
[1748490963690,0.29119711,686.82,686.49,1.61414726]
[1748490963892,0.29119711,686.82,686.43,0.64]
[1748490964090,0.29119711,686.82,686.44,1.61414471]
[1748490964291,0.29119711,686.82,686.45,1.61414471]
[1748490964493,0.29119711,686.82,686.46,1.61414471]
[1748490964692,0.29119711,686.82,686.47,1.61414471]
[1748490964987,0.29119711,686.82,686.48,1.61414471]
[1748490965188,0.29119711,686.82,686.49,1.61417713]
[1748490965495,0.29119711,686.82,686.5,1.61421474]
[1748490965693,0.29119711,686.82,686.51,1.61421474]
[1748490965989,0.29119711,686.82,686.52,1.61421176]
[1748490966191,0.29119711,686.82,686.53,1.61433137]
[1748490966389,0.29119711,686.82,686.54,1.61439633]
[1748490966692,0.29119711,686.82,686.55,1.04674675]
[1748490966889,0.29119711,686.82,686.56,1.04674675]
[1748490967089,0.29119711,686.82,686.57,1.04674675]
[1748490967291,0.29119711,686.82,686.58,1.04674675]
[1748490967490,0.29119711,686.82,686.59,1.04668363]
[1748490967694,0.29119711,686.82,686.6,1.04650136]
[1748490967888,0.29119711,686.82,686.43,0.64]
[1748490968090,0.29119711,686.82,686.44,1.61414685]
[1748490968290,0.29119711,686.82,686.45,1.61414685]
[1748490968596,0.29119711,686.82,686.46,1.61414685]
[1748490968791,0.29119711,686.82,686.47,1.61414685]
[1748490968994,0.29119711,686.82,686.48,0.56765182]
[1748490969195,0.29119711,686.82,686.49,1.61367959]
[1748490969396,0.29119711,686.82,686.5,1.0460388]
[1748490969596,0.29119711,686.82,686.43,0.64]
[1748490969597,0.29119711,686.82,686.51,1.61366316]
[1748490969895,0.29119711,686.82,686.52,0.56762436]
[1748490970096,0.29119711,686.82,686.53,1.61363264]
[1748490970391,0.29119711,686.82,686.54,1.61363264]
[1748490970592,0.29119711,686.82,686.55,1.61363264]
[1748490970893,0.29119711,686.82,686.56,1.61350017]
[1748490971093,0.29119711,686.82,686.57,0.56762436]
[1748490971298,0.29119711,686.82,686.43,0.64]
[1748490971693,0.29119711,686.82,686.44,1.61343922]
[1748490971992,0.29119711,686.82,686.43,0.64]
[1748490972192,0.29119711,686.82,686.44,1.61330461]
[1748490972392,0.29119711,686.82,686.45,1.61330461]
[1748490972597,0.29119711,686.82,686.46,1.61330461]
[1748490972893,0.29119711,686.82,686.47,1.61336247]
[1748490973100,0.29119711,686.82,686.48,1.61336782]
[1748490973294,0.29119711,686.82,686.49,1.61336782]
[1748490973500,0.29119711,686.82,686.5,1.61336782]
[1748490973797,0.29119711,686.82,686.51,1.61336782]
[1748490974001,0.29119711,686.82,686.52,1.61319271]
[1748490974303,0.29119711,686.82,686.53,1.61317898]
[1748490974505,0.29119711,686.82,686.54,1.04570709]
[1748490974697,0.29119711,686.82,686.55,1.61318113]
[1748490974900,0.29119711,686.82,686.56,1.6131811]
[1748490975104,0.29119711,686.82,686.57,1.04570853]
[1748490975404,0.29119711,686.82,686.58,1.04570853]
[1748490975605,0.29119711,686.82,686.59,1.04570853]
[1748490975805,0.29119711,686.82,686.6,1.04563783]
[1748490976002,0.29119711,686.82,686.61,1.04563783]
[1748490976206,0.29119711,686.82,686.62,1.04563783]
[1748490976408,0.29119711,686.82,686.63,1.04557525]
[1748490976707,0.29119711,686.82,686.64,1.04557525]
[1748490977002,0.29119711,686.82,686.65,1.04557525]
[1748490977306,0.29119711,686.82,686.66,1.04547609]
[1748490977606,0.29119711,686.82,686.67,1.04547612]
[1748490979028,0.29119711,686.82,686.58,1.0454301]
[1748490979213,0.29119711,686.82,686.54,0.56747258]
[1748490979214,0.29119711,686.82,686.59,1.0451584]
[1748490979415,0.29119711,686.82,686.54,0.56747258]
[1748490979603,0.29119711,686.82,686.55,1.61242521]
[1748490979807,0.25305962,686.78,686.56,1.04510898]
[1748490980008,0.29121831,686.77,686.57,1.04510898]
[1748490980304,0.29121831,686.77,686.54,0.56747258]
[1748490980305,0.29121831,686.77,686.58,1.04510583]
[1748490980608,0.29121831,686.77,686.59,1.04486657]
[1748490980811,0.29121831,686.77,686.54,0.56747258]
[1748490981023,0.29121831,686.77,686.55,1.61216304]
[1748490981207,0.29121831,686.77,686.56,1.0448667]
[1748490981404,0.29121831,686.77,686.57,1.0448667]
[1748490981612,0.29121831,686.77,686.58,1.0448353]
[1748490981908,0.29121831,686.77,686.59,1.0448417]
[1748490982107,0.29121831,686.77,686.54,0.56747258]
[1748490982410,0.29121831,686.77,686.55,1.0448208]
[1748490982609,0.29121831,686.77,686.56,1.0448208]
[1748490982940,0.29121831,686.77,686.54,0.56747258]
[1748490982941,0.29121831,686.77,686.57,1.0447934]
[1748490983110,0.29121831,686.77,686.58,1.0447934]
[1748490983310,0.29121831,686.77,686.59,1.0447934]
[1748490983612,0.29121831,686.77,686.6,1.0447934]
[1748490983811,0.29121831,686.77,686.61,1.0446661]
[1748490984005,0.29121831,686.77,686.62,1.0446661]
[1748490984209,0.29121831,686.77,686.63,1.0446661]
[1748490984408,0.29121831,686.77,686.64,1.0446616]
[1748490984611,0.29121831,686.77,686.65,1.0446474]
[1748490984811,0.29121831,686.77,686.54,0.56747258]
[1748490985104,0.29121831,686.77,686.55,1.0446464]
[1748490985312,0.29121831,686.77,686.56,1.044653]
[1748490985511,0.29121831,686.77,686.57,1.044653]
[1748490985709,0.29121831,686.77,686.58,1.0446498]
[1748490985902,0.29121831,686.77,686.59,1.0446497]
[1748490986108,0.29121831,686.77,686.6,1.0446503]
[1748490986307,0.29121831,686.77,686.54,0.56747258]
[1748490986308,0.29121831,686.77,686.61,1.0446503]
[1748490986507,0.29121831,686.77,686.62,1.0446503]
[1748490986713,0.29121831,686.77,686.63,1.0446503]
[1748490986913,0.29121831,686.77,686.64,1.0446503]
[1748490987107,0.29121831,686.77,686.65,1.0446503]
[1748490987336,0.29121831,686.77,686.54,0.56747258]
[1748490987543,0.29121831,686.77,686.55,1.0446145]
[1748490987727,0.29121831,686.77,686.56,1.0446145]
[1748490987913,0.29121831,686.77,686.57,1.0446181]
[1748490988114,0.29121831,686.77,686.58,1.0446181]
[1748490988307,0.29121831,686.77,686.59,1.0446181]
[1748490988519,0.29121831,686.77,686.54,0.56747258]
[1748490988712,0.29121831,686.77,686.55,1.0446506]
[1748490988914,0.29121831,686.77,686.56,1.0446506]
[1748490989115,0.29121831,686.77,686.54,0.56747258]
[1748491097488,0.29121831,686.77,686.37,0.662]
[1748491131619,0.29121831,686.77,686.38,0.498]
[1748491165949,0.29121831,686.77,686.38,1.1]